bitfinex/quotes_SOLUSD_20241022
["timestamp","ask_amount","ask_price","bid_price","bid_amount"]
[1729605910254,23.776884,166.16,166.07,17.40989762]
[1729605910662,20.0,166.15,166.04,15.7703]
[1729605910954,6.0207,166.1,166.01,17.40989762]
[1729605911139,29.796984,166.11,166.01,17.40989762]
[1729605911346,0.1,166.2,166.08,17.40989762]
[1729605911559,20.0,166.18,166.05,23.69119762]
[1729605911741,6.02,166.12,166.03,17.40989762]
[1729605911939,6.0203,166.11,166.01,23.69119762]
[1729605912136,16.6647,166.13,166.01,23.69119762]
[1729605912358,6.0206,166.1,166.01,23.69119762]
[1729605912964,6.0219,166.06,165.97,6.2813]
[1729605913149,23.776884,166.06,165.97,23.69119762]
[1729605913342,23.776884,166.06,165.99,17.40989762]
[1729605914566,23.776884,166.06,165.97,6.2813]
[1729605914769,23.776884,166.06,165.97,23.69119762]
[1729605915259,23.776884,166.06,165.95,86.402]
[1729605915260,6.0235,166.02,165.92,23.49569762]
[1729605915565,15.075,166.05,165.92,23.49569762]
[1729605915566,20.0,166.04,165.92,23.49569762]
[1729605915736,23.776884,166.04,165.94,17.40989762]
[1729605915937,15.075,166.05,165.96,17.40989762]
[1729605916169,6.4277,166.06,165.96,17.40989762]
[1729605916534,23.776884,166.05,165.96,17.40989762]
[1729605916834,6.4277,166.06,165.96,17.40989762]
[1729605917759,23.776884,166.03,165.94,17.40989762]
[1729605917963,23.776884,166.05,165.94,17.40989762]
[1729605917964,6.0226,166.04,165.94,17.40989762]
[1729605918263,29.799884,166.03,165.94,17.40989762]
[1729605918436,23.776884,166.01,165.9,33.03329762]
[1729605918634,6.0243,166.0,165.9,33.03329762]
[1729605919535,6.0243,166.0,165.92,17.40989762]
[1729605920474,6.0243,166.0,165.9,33.03329762]
[1729605920639,6.0245,165.99,165.89,6.26245417]
[1729605921045,23.776884,165.99,165.89,6.26245417]
[1729605921570,23.776884,165.99,165.9,17.40989762]
[1729605921767,6.0233,166.03,165.92,17.40989762]
[1729605921941,23.776884,166.02,165.92,17.40989762]
[1729605922142,23.776884,166.01,165.92,17.40989762]
[1729605922343,6.024,166.0,165.9,17.40989762]
[1729605922542,23.776884,165.99,165.9,17.40989762]
[1729605922744,29.801384,165.99,165.9,17.40989762]
[1729605922943,6.0249,165.98,165.89,6.26245417]
[1729605923540,23.776884,165.99,165.89,6.26245417]
[1729605923746,6.0259,165.95,165.89,6.26245417]
[1729605924044,29.803484,165.94,165.89,6.26245417]
[1729605924239,23.776884,165.94,165.84,6.2521]
[1729605924475,23.776884,165.92,165.84,6.2521]
[1729605925277,6.0262,165.94,165.82,17.40989762]
[1729605925565,23.776884,165.94,165.85,17.40989762]
[1729605925972,23.776884,165.96,165.87,17.40989762]
[1729605926174,29.802384,165.96,165.87,17.40989762]
[1729605926465,6.0259,165.95,165.84,17.40989762]
[1729605926672,23.776884,165.94,165.84,17.40989762]
[1729605926851,12.5697,165.97,165.84,17.40989762]
[1729605927165,29.802384,165.96,165.86,17.40989762]
[1729605927366,6.5444,165.97,165.88,17.40989762]
[1729605927674,29.801684,165.98,165.9,17.40989762]
[1729605927974,6.0258,165.96,165.87,6.1496]
[1729605928372,23.776884,165.95,165.87,6.1496]
[1729605928881,23.776884,165.95,165.86,17.40989762]
[1729605929164,6.0258,165.96,165.86,17.40989762]
[1729605929370,23.776884,165.97,165.88,17.40989762]
[1729605929573,23.776884,165.98,165.9,17.40989762]
[1729605929755,16.0924,165.99,165.92,17.40989762]
[1729605931171,6.0237,166.01,165.92,17.40989762]
[1729605931360,22.0591,166.02,165.92,17.40989762]
[1729605931956,28.0824,166.02,165.92,17.40989762]
[1729605932357,6.0243,166.0,165.9,33.74879762]
[1729605932865,6.0254,165.97,165.88,17.40989762]
[1729605934581,23.776884,165.97,165.88,17.40989762]
[1729605934778,23.776884,165.98,165.9,17.40989762]
[1729605935173,29.801684,165.98,165.9,17.40989762]
[1729605935379,29.801684,165.98,165.88,17.40989762]
[1729605935771,23.776884,165.99,165.9,17.40989762]
[1729605936189,29.801384,165.99,165.9,17.40989762]
[1729605938387,6.0248,165.98,165.9,17.40989762]
[1729605939398,23.776884,165.99,165.88,17.40989762]
[1729605939577,6.0257,165.96,165.86,33.44289762]
[1729605939772,16.2696,165.94,165.84,17.40989762]
[1729605940076,6.0273,165.91,165.79,6.4492]
[1729605940278,23.776884,165.91,165.82,17.40989762]
[1729605942395,21.6516,166.01,165.88,17.40989762]
[1729605942601,6.025,165.98,165.88,17.40989762]
[1729605942919,6.0257,165.96,165.85,17.40989762]
[1729605943397,6.0251,165.97,165.85,17.40989762]
[1729605943579,6.0251,165.97,165.87,17.40989762]
[1729605943777,23.776884,165.96,165.87,17.40989762]
[1729605943977,21.6516,166.01,165.87,17.40989762]
[1729605944289,21.6516,166.01,165.93,17.40989762]
[1729605944894,22.57768918,166.05,165.93,17.40989762]
[1729605945199,6.0227,166.04,165.93,17.40989762]
[1729605945383,22.339,166.05,165.93,17.40989762]
[1729605946193,6.0227,166.04,165.93,17.40989762]
[1729605946580,16.3167,166.05,165.93,17.40989762]
[1729605946799,23.776884,166.01,165.93,17.40989762]
[1729605947202,23.776884,165.99,165.91,6.6217]
[1729605947492,6.1498,166.06,165.96,17.40989762]
[1729605947697,6.25971802,166.07,165.99,17.40989762]
[1729605947868,15.0246,166.08,165.99,17.40989762]
[1729605948897,23.776884,166.07,165.99,17.40989762]
[1729605949599,15.0246,166.08,165.99,17.40989762]
[1729605950882,23.776884,166.07,165.99,17.40989762]
[1729605951584,29.798184,166.08,165.97,15.2149]
[1729605951898,29.798184,166.08,165.99,17.40989762]
[1729605952806,6.0226,166.04,165.93,15.8982]
[1729605952972,23.776884,166.01,165.94,17.40989762]
[1729605953176,23.776884,166.01,165.92,17.40989762]
[1729605953397,29.800684,166.01,165.92,17.40989762]
[1729605953778,20.0,166.07,165.98,17.40989762]
[1729605953980,28.4222,166.09,165.98,17.40989762]
[1729605954177,6.0211,166.08,165.98,17.40989762]
[1729605954396,22.4011,166.09,165.98,17.40989762]
[1729605954620,15.1529,166.08,165.94,17.40989762]
[1729605954785,6.0232,166.03,165.94,17.40989762]
[1729605955174,23.776884,166.02,165.94,17.40989762]
[1729605955379,29.800284,166.02,165.94,17.40989762]
[1729605955899,23.776884,166.0,165.94,17.40989762]
[1729605956283,23.776884,166.01,165.94,17.40989762]
[1729605956979,29.800584,166.01,165.94,17.40989762]
[1729605958302,20.0,166.03,165.94,17.40989762]
[1729605958498,23.776884,166.03,165.94,17.40989762]
[1729605959083,6.0226,166.04,165.94,17.40989762]
[1729605959084,23.776884,166.04,165.94,17.40989762]
[1729605959413,29.799584,166.04,165.94,17.40989762]
[1729605960409,23.776884,166.04,165.91,6.6217]
[1729605960700,6.0255,165.96,165.88,17.40989762]
[1729605961200,23.776884,165.95,165.88,17.40989762]
[1729605961403,23.776884,165.95,165.84,33.09049762]
[1729605961593,15.9328,165.94,165.84,17.40989762]
[1729605961903,6.0274,165.91,165.82,23.61489762]
[1729605962205,23.776884,165.93,165.85,17.40989762]
[1729605962407,26.0255,165.97,165.87,17.40989762]
[1729605962579,23.776884,165.96,165.89,17.40989762]
[1729605962997,23.776884,165.96,165.87,17.40989762]
[1729605963179,23.776884,165.96,165.85,17.40989762]
[1729605963392,23.776884,165.94,165.85,17.40989762]
[1729605963981,23.776884,165.95,165.87,17.40989762]
[1729605964186,23.776884,165.94,165.87,17.40989762]
[1729605964689,29.803384,165.94,165.87,17.40989762]
[1729605965098,23.776884,165.94,165.87,17.40989762]
[1729605965299,22.8157,165.98,165.9,17.40989762]
[1729605965509,28.8408,165.98,165.9,17.40989762]
[1729605966005,6.0251,165.97,165.9,17.40989762]
[1729605966580,28.8406,165.98,165.9,17.40989762]
[1729605966793,23.776884,165.97,165.9,17.40989762]
[1729605966993,6.0241,166.0,165.9,17.40989762]
[1729605967187,6.0237,166.01,165.93,17.40989762]
[1729605967425,22.1181,166.06,165.96,17.40989762]
[1729605968093,8.3063107,166.1,165.99,17.40989762]
[1729605968300,22.7652,166.11,166.02,17.40989762]
[1729605968604,10.7376494,166.21,166.05,17.40989762]
[1729605968605,6.24494739,166.12,166.05,17.40989762]
[1729605968810,6.2143,166.15,166.05,17.40989762]
[1729605969117,6.02,166.12,166.05,17.40989762]
[1729605969409,6.02,166.12,166.03,17.40989762]
[1729605969636,6.2143,166.15,166.0,17.40989762]
[1729605969986,6.0197,166.12,166.0,17.40989762]
[1729605970218,20.0,166.11,166.0,17.40989762]
[1729605970389,6.0193,166.14,166.01,27.85881267]
[1729605970594,12.2329,166.15,166.04,27.85881267]
[1729605970988,16.5275,166.16,166.04,27.85881267]
[1729605971214,12.26249305,166.17,166.04,27.85881267]
[1729605971512,0.05929116,166.21,166.04,27.85881267]
[1729605971513,21.98609116,166.21,166.1,27.85881267]
[1729605971896,0.05929116,166.21,166.1,27.85881267]
[1729605972090,0.05929116,166.21,166.1,34.02651267]
[1729605972916,6.0168,166.2,166.1,34.02651267]
[1729605973215,6.0168,166.2,166.1,6.1677]
[1729605973593,6.0172,166.19,166.1,6.1677]
[1729605973793,6.0172,166.19,166.08,27.85881267]
[1729605974116,6.0171,166.2,166.08,27.85881267]
[1729605974415,6.0187,166.15,166.05,33.99441267]
[1729605974797,26.0179,166.17,166.05,33.99441267]
[1729605975021,29.795184,166.16,166.05,33.99441267]
[1729605975597,23.776884,166.14,166.0,76.2823]
[1729605975796,20.0,166.11,166.0,6.2823]
[1729605976001,20.0,166.15,166.0,6.2823]
[1729605976002,23.776884,166.1,166.0,6.2823]
[1729605976205,29.797284,166.1,166.0,6.2823]
[1729605976893,35.6234,166.15,166.0,6.2823]
[1729605977093,26.0196,166.13,166.0,6.2823]
[1729605977396,43.776884,166.11,166.0,6.2823]
[1729605979530,6.0192,166.14,166.0,76.2823]
[1729605979826,6.0186,166.15,166.04,27.85881267]
[1729605980596,20.0,166.2,166.04,97.85881267]
[1729605980792,6.0168,166.2,166.07,27.85881267]
[1729605981007,6.0168,166.2,166.1,27.85881267]
[1729605981228,0.05929116,166.21,166.1,27.85881267]
[1729605982409,0.05929116,166.21,166.16,27.85881267]
[1729605982732,0.05929116,166.21,166.17,93.776884]
[1729605983034,0.05929116,166.21,166.19,27.85881267]
[1729605983238,0.05929116,166.21,166.2,93.776884]
[1729605983410,0.6234569,166.28,166.22,27.85881267]
[1729605986338,0.6234569,166.28,166.19,27.85881267]
[1729605986633,0.6234569,166.28,166.19,97.85881267]
[1729605986816,0.6234569,166.28,166.22,27.85881267]
[1729605989427,6.6375569,166.28,166.22,27.85881267]
[1729605989622,6.6375569,166.28,165.63,15.53806886]
[1729605989623,6.0145,166.27,166.19,27.85881267]
[1729605989841,0.6234569,166.28,166.16,27.85881267]
[1729605990136,6.0152,166.25,166.16,27.85881267]
[1729605990730,6.0154,166.24,166.16,27.85881267]
[1729605990928,23.776884,166.27,166.16,27.85881267]
[1729605991117,6.0154,166.24,166.16,27.85881267]
[1729605991322,6.0158,166.23,166.13,27.85881267]
[1729605992037,6.0175,166.19,166.1,27.85881267]
[1729605992440,43.776884,166.22,166.1,27.85881267]
[1729605992740,43.776884,166.22,166.07,34.04921267]
[1729605992741,6.0183,166.16,166.07,34.04921267]
[1729605993315,15.0412,166.21,166.07,34.04921267]
[1729605993541,6.0179,166.17,166.07,34.04921267]
[1729605993844,6.0184,166.16,166.07,34.04921267]
[1729605994342,30.05217259,166.2,166.1,27.85881267]
[1729605994727,29.793684,166.2,166.1,27.85881267]
[1729605995616,20.0,166.22,166.1,27.85881267]
[1729605996223,6.0161,166.22,166.1,27.85881267]
[1729605996724,20.0,166.22,166.13,27.85881267]
[1729605997231,6.0166,166.21,166.13,27.85881267]
[1729605997737,26.0161,166.22,166.13,27.85881267]
[1729605998331,15.9087,166.23,166.13,27.85881267]
[1729605998725,23.776884,166.24,166.13,27.85881267]
[1729605999040,12.1973,166.25,166.13,97.85881267]
[1729605999247,6.0147,166.26,166.16,27.85881267]
[1729605999746,15.9336569,166.28,166.16,27.85881267]
[1729606000037,0.6234569,166.28,166.19,27.85881267]
[1729606001228,0.6234569,166.28,166.16,27.85881267]
[1729606001546,0.6234569,166.28,166.18,70.0]
[1729606001842,6.6374569,166.28,166.16,20.0]
[1729606002059,0.6234569,166.28,166.18,27.85881267]
[1729606003948,6.0147,166.26,166.18,27.85881267]
[1729606004147,6.0147,166.26,166.16,27.85881267]
[1729606004324,23.776884,166.27,166.16,27.85881267]
[1729606004847,6.0153,166.25,166.16,27.85881267]
[1729606006139,6.0161,166.23,166.16,27.85881267]
[1729606006443,23.776884,166.25,166.13,27.85881267]
[1729606006652,6.0147,166.26,166.16,27.85881267]
[1729606006943,6.016,166.23,166.16,27.85881267]
[1729606007243,29.791984,166.25,166.16,27.85881267]
[1729606007445,6.0157,166.24,166.16,27.85881267]
[1729606007652,6.0169,166.2,166.12,6.104]
[1729606008448,43.776884,166.23,166.12,6.104]
[1729606008752,23.776884,166.2,166.1,27.85881267]
[1729606009127,20.0,166.2,166.1,27.85881267]
[1729606009326,23.776884,166.18,166.08,6.4763]
[1729606009742,6.0179,166.17,166.08,6.4763]
[1729606010333,6.0184,166.16,166.07,27.85881267]
[1729606010529,6.0173,166.19,166.07,97.85881267]
[1729606010732,6.5245,166.22,166.07,97.85881267]
[1729606010733,20.0,166.18,166.07,97.85881267]
[1729606011227,6.0169,166.2,166.07,97.85881267]
[1729606011228,23.776884,166.19,166.1,27.85881267]
[1729606011428,29.794084,166.19,166.1,27.85881267]
[1729606012044,6.0169,166.2,166.1,27.85881267]
[1729606012641,20.0,166.21,166.07,27.85881267]
[1729606012834,6.0168,166.2,166.07,97.85881267]
[1729606013041,26.0165,166.21,166.07,97.85881267]
[1729606013250,29.793784,166.2,166.07,97.85881267]
[1729606013757,6.5245,166.22,166.1,27.85881267]
[1729606014051,22.54685804,166.24,166.1,27.85881267]
[1729606014351,6.0157,166.23,166.1,27.85881267]
[1729606015141,20.0,166.22,166.1,27.85881267]
[1729606015357,16.2728,166.24,166.1,27.85881267]
[1729606015358,16.2728,166.24,166.11,93.776884]
[1729606015534,23.776884,166.23,166.13,27.85881267]
[1729606015937,6.0157,166.23,166.13,27.85881267]
[1729606017256,6.0157,166.23,166.1,27.85881267]
[1729606017257,6.0168,166.2,166.1,27.85881267]
[1729606017432,6.0163,166.22,166.1,27.85881267]
[1729606017636,23.776884,166.23,166.1,27.85881267]
[1729606017851,23.776884,166.23,166.13,27.85881267]
[1729606018149,6.0164,166.22,166.13,27.85881267]
[1729606018654,29.792684,166.23,166.13,27.85881267]
[1729606019468,6.0168,166.21,166.1,27.85881267]
[1729606020643,20.0,166.22,166.13,27.85881267]
[1729606020843,6.26852586,166.25,166.13,27.85881267]
[1729606021064,29.792484,166.24,166.13,27.85881267]
[1729606021365,6.0161,166.22,166.13,27.85881267]
[1729606021533,6.0157,166.23,166.13,27.85881267]
[1729606021935,23.776884,166.24,166.14,6.1581]
[1729606022164,23.776884,166.25,166.14,6.1581]
[1729606022855,6.016,166.23,166.14,6.1581]
[1729606023038,23.776884,166.25,166.14,6.1581]
[1729606024535,29.791884,166.25,166.14,6.1581]
[1729606026260,6.0741,166.26,166.16,27.85881267]
[1729606026461,0.6234569,166.28,166.19,27.85881267]
[1729606026967,0.6234569,166.28,166.19,97.85881267]
[1729606027531,0.6234569,166.28,166.22,27.85881267]
[1729606028261,0.6234569,166.28,166.19,97.85881267]
[1729606028553,0.6234569,166.28,166.2,23.776884]
[1729606029647,0.6234569,166.28,166.19,27.85881267]
[1729606031737,0.6234569,166.28,166.22,97.85881267]
[1729606032849,15.6156,166.37,166.27,70.0]
[1729606033050,30.1357,166.47,166.27,70.0]
[1729606033051,15.2332,166.42,166.32,27.85881267]
[1729606033246,11.60764969,166.41,166.32,27.85881267]
[1729606033455,6.27621955,166.47,166.38,27.85881267]
[1729606033763,21.2499,166.5,166.38,27.85881267]
[1729606033963,6.0075,166.46,166.38,27.85881267]
[1729606034262,21.2499,166.5,166.38,27.85881267]
[1729606035464,27.256,166.5,166.38,27.85881267]
[1729606035649,20.0,166.49,166.38,27.85881267]
[1729606036750,26.0066,166.49,166.38,27.85881267]
[1729606036949,6.27401103,166.53,166.41,27.85881267]
[1729606037178,6.0053,166.52,166.41,27.85881267]
[1729606037539,6.0056,166.51,166.41,27.85881267]
[1729606038760,20.0,166.54,166.41,27.85881267]
[1729606038971,6.0049,166.53,166.41,97.85881267]
[1729606039467,20.0,166.54,166.42,23.776884]
[1729606039848,12.33750614,166.55,166.44,27.85881267]
[1729606040056,16.2879,166.56,166.44,44.50187315]
[1729606040963,6.0042,166.55,166.44,44.50187315]
[1729606041551,22.2917,166.56,166.44,44.50187315]
[1729606041750,43.776884,166.55,166.44,27.85881267]
[1729606041986,43.776884,166.55,166.41,27.85881267]
[1729606042263,6.0035,166.57,166.45,70.0]
[1729606042445,6.0035,166.57,166.46,27.85881267]
[1729606042644,6.4245,166.59,166.46,27.85881267]
[1729606042645,6.0038,166.56,166.46,27.85881267]
[1729606042853,6.0042,166.55,166.46,27.85881267]
[1729606043366,6.4245,166.59,166.46,27.85881267]
[1729606043547,6.0042,166.55,166.46,27.85881267]
[1729606043744,6.0049,166.53,166.4,70.0]
[1729606044278,20.0,166.58,166.44,27.85881267]
[1729606044447,15.4562,166.61,166.42,94.97808378]
[1729606044448,15.3562,166.61,166.5,27.85881267]
[1729606044842,15.3562,166.61,166.51,93.776884]
[1729606045049,15.3562,166.61,166.5,27.85881267]
[1729606045868,6.0028,166.59,166.5,27.85881267]
[1729606046251,21.3585,166.61,166.5,27.85881267]
[1729606047065,0.6234569,166.62,166.59,27.85881267]
[1729606047851,0.6234569,166.62,166.61,70.0]
[1729606048051,0.6234569,166.62,166.61,93.776884]
[1729606048759,5.997,166.75,166.61,93.776884]
[1729606048956,28.57253052,166.77,166.63,70.0]
[1729606049173,28.57253052,166.77,166.62,27.85881267]
[1729606049371,5.9971,166.75,166.62,27.85881267]
[1729606049563,5.9971,166.75,166.62,29.05848629]
[1729606049770,0.15015313,166.74,166.63,70.0]
[1729606050764,6.14755313,166.74,166.64,1.19963033]
[1729606051150,6.14775313,166.74,166.62,27.85881267]
[1729606051457,0.15015313,166.74,166.62,27.85881267]
[1729606051769,0.15015313,166.74,166.59,27.85881267]
[1729606051770,5.9977,166.73,166.59,27.85881267]
[1729606051955,6.0007,166.65,166.56,27.85881267]
[1729606052273,5.999,166.7,166.59,27.85881267]
[1729606052484,20.0,166.7,166.59,27.85881267]
[1729606052855,29.775384,166.71,166.59,27.85881267]
[1729606053059,6.3257,166.72,166.63,70.0]
[1729606053275,6.3257,166.72,166.62,29.05847011]
[1729606053559,12.3237,166.72,166.62,27.85881267]
[1729606054275,6.3257,166.72,166.62,27.85881267]
[1729606055274,23.776884,166.75,166.63,71.1998013]
[1729606055575,5.9974,166.74,166.63,71.1998013]
[1729606055768,25.997,166.75,166.63,71.1998013]
[1729606055969,6.2,166.76,166.65,70.0]
[1729606056157,0.15015313,166.74,166.65,70.0]
[1729606056958,0.15015313,166.74,166.68,27.85881267]
[1729606057176,0.15015313,166.74,166.69,1.19937105]
[1729606057677,0.15015313,166.74,166.71,27.85881267]
[1729606057857,0.6234569,166.78,166.75,23.776884]
[1729606058065,0.6234569,166.78,166.77,27.85881267]
[1729606058285,0.6234569,166.78,166.77,29.05760109]
[1729606058876,5.993,166.87,166.77,29.05760109]
[1729606059077,5.9933,166.86,166.77,29.05760109]
[1729606059275,6.5117,166.88,166.78,90.0]
[1729606059464,12.5043,166.88,166.79,1.19858946]
[1729606059986,5.993,166.87,166.79,1.19858946]
[1729606060352,12.504,166.88,166.8,27.85881267]
[1729606060752,5.9919,166.89,166.81,1.19864281]
[1729606061182,0.6234569,166.95,166.83,20.0]
[1729606061388,5.9921,166.89,166.83,20.0]
[1729606061559,5.9921,166.89,166.8,97.85881267]
[1729606061874,5.9917,166.9,166.81,20.0]
[1729606062078,5.9912,166.92,166.83,27.85881267]
[1729606062272,5.9905,166.93,166.84,20.0]
[1729606062573,5.9909,166.92,166.84,20.0]
[1729606062772,0.6234569,166.95,166.84,20.0]
[1729606062773,5.9901,166.94,166.84,20.0]
[1729606062956,0.6234569,166.95,166.84,20.0]
[1729606063157,5.9912,166.92,166.84,20.0]
[1729606063671,5.9905,166.93,166.84,90.0]
[1729606063869,5.9912,166.91,166.84,20.0]
[1729606064371,0.6234569,166.95,166.8,97.85881267]
[1729606064575,0.6234569,166.95,166.81,20.0]
[1729606064879,5.9909,166.92,166.83,27.85881267]
[1729606065763,5.9912,166.91,166.83,27.85881267]
[1729606066168,5.9912,166.91,166.84,20.0]
[1729606066366,5.9912,166.92,166.84,20.0]
[1729606066571,5.9912,166.91,166.84,20.0]
[1729606067075,0.6234569,166.95,166.84,20.0]
[1729606067289,5.9909,166.92,166.84,20.0]
[1729606067780,5.9904,166.94,166.84,90.0]
[1729606069577,5.9901,166.94,166.84,20.0]
[1729606069788,5.9908,166.93,166.84,20.0]
[1729606070460,5.991,166.92,166.84,20.0]
[1729606070870,5.9909,166.92,166.84,20.0]
[1729606071486,5.9905,166.94,166.84,90.0]
[1729606072481,5.9905,166.93,166.84,90.0]
[1729606073181,0.6234569,166.95,166.84,90.0]
[1729606073375,5.9902,166.94,166.84,90.0]
[1729606073577,5.9905,166.93,166.84,90.0]
[1729606073883,20.0,166.93,166.79,6.1308]
[1729606074393,23.776884,166.94,166.77,27.85881267]
[1729606074562,0.77337147,166.95,166.86,27.85881267]
[1729606075093,0.77337147,166.95,166.87,20.0]
[1729606075402,5.9902,166.94,166.87,20.0]
[1729606075685,0.77337147,166.95,166.87,90.0]
[1729606077491,0.77337147,166.95,166.87,20.0]
[1729606078182,6.76327147,166.95,166.84,6.2145]
[1729606078587,0.77337147,166.95,166.84,6.2145]
[1729606078795,0.77337147,166.95,166.86,70.0]
[1729606079190,0.77337147,166.95,166.87,20.0]
[1729606079497,0.77337147,166.95,166.89,70.0]
[1729606079686,0.77337147,166.95,166.9,20.0]
[1729606080274,0.77337147,166.95,166.87,20.0]
[1729606080777,0.77337147,166.95,166.87,90.0]
[1729606081677,0.77337147,166.95,166.91,20.0]
[1729606081985,0.77337147,166.95,166.92,1.19762157]
[1729606082181,0.77337147,166.95,166.94,65.490984]
[1729606082385,0.1,167.13,166.94,65.490984]
[1729606082386,6.0282,167.1,167.0,20.0]
[1729606082576,21.3654,167.13,167.03,20.0]
[1729606082781,15.382,167.13,167.05,70.0]
[1729606083002,5.9804,167.22,167.1,90.0]
[1729606083298,14.9453,167.28,167.14,20.0]
[1729606083499,23.2226569,167.29,167.14,20.0]
[1729606083677,5.9789,167.26,167.15,70.0]
[1729606084095,5.98,167.23,167.12,20.0]
[1729606084298,0.1,167.28,167.12,20.0]
[1729606084501,5.9797,167.24,167.13,70.0]
[1729606084709,5.9797,167.24,167.14,20.0]
[1729606085201,5.978,167.28,167.14,20.0]
[1729606085500,0.6234569,167.29,167.16,20.0]
[1729606085501,5.9785,167.27,167.16,20.0]
[1729606085677,5.9786,167.27,167.17,70.0]
[1729606086006,5.9786,167.27,167.15,27.85881267]
[1729606086007,0.6234569,167.29,167.19,90.0]
[1729606086187,0.6234569,167.29,167.22,20.0]
[1729606086384,0.6234569,167.29,167.24,20.0]
[1729606086584,0.6234569,167.29,167.25,71.19529022]
[1729606086814,0.6234569,167.29,167.26,20.0]
[1729606087102,5.9784,167.27,167.19,20.0]
[1729606087312,0.6234569,167.29,167.19,20.0]
[1729606087515,0.6234569,167.29,167.17,90.0]
[1729606087688,0.6234569,167.29,167.23,27.85881267]
[1729606087893,0.6234569,167.29,167.27,20.0]
[1729606088417,0.6234569,167.29,167.24,70.0]
[1729606088594,0.6234569,167.29,167.23,90.0]
[1729606088793,0.6234569,167.29,167.25,97.85881267]
[1729606089001,0.6234569,167.29,167.25,27.85881267]
[1729606089207,0.6234569,167.29,167.27,20.0]
[1729606089514,0.4,167.3,167.27,20.0]
[1729606089515,0.4,167.3,167.29,20.0]
[1729606089811,0.6234569,167.46,167.32,20.0]
[1729606089994,5.973,167.42,167.32,20.0]
[1729606090186,5.9724,167.44,167.33,71.19471592]
[1729606090387,5.972,167.45,167.35,70.0]
[1729606090610,5.972,167.45,167.36,1.19446375]
[1729606090912,0.6234569,167.46,167.36,1.19446375]
[1729606090913,0.6234569,167.46,167.37,70.0]
[1729606091218,0.6234569,167.46,167.38,21.19433774]
[1729606091392,0.6234569,167.46,167.39,70.0]
[1729606091592,0.6234569,167.46,167.4,1.19417875]
[1729606091990,0.6234569,167.46,167.38,20.0]
[1729606092614,0.6234569,167.46,167.41,70.0]
[1729606092918,0.6234569,167.46,167.4,1.19408816]
[1729606093221,0.6234569,167.46,167.37,20.0]
[1729606093395,0.6234569,167.46,167.38,70.0]
[1729606093718,0.6234569,167.46,167.36,70.0]
[1729606094392,0.6234569,167.46,167.34,27.85881267]
[1729606094393,0.6234569,167.46,167.34,97.85881267]
[1729606094595,5.9738,167.4,167.32,1.19437332]
[1729606094894,5.9737,167.4,167.3,70.0]
[1729606095106,0.6234569,167.46,167.34,70.0]
[1729606095296,5.9723,167.44,167.34,70.0]
[1729606095706,0.6234569,167.46,167.37,70.0]
[1729606096012,0.6234569,167.46,167.38,20.0]
[1729606096212,0.6234569,167.46,167.36,20.0]
[1729606096419,0.6234569,167.46,167.4,20.0]
[1729606096595,0.6234569,167.46,167.41,71.19412143]
[1729606096991,8.19705925,167.47,167.41,71.19412143]
[1729606097522,8.19705925,167.47,167.46,90.0]
[1729606097819,1.66175467,167.63,167.52,70.0]
[1729606098007,0.6234569,167.63,167.51,20.0]
[1729606098212,0.1,167.6,167.43,70.0]
[1729606098411,0.1,167.56,167.42,20.0]
[1729606098716,0.1,167.56,167.41,70.0]
[1729606098717,5.9701,167.51,167.41,70.0]
[1729606098887,0.3287547,167.56,167.41,70.0]
[1729606098888,5.9687,167.54,167.41,70.0]
[1729606099209,5.9699,167.51,167.41,70.0]
[1729606099422,0.2287547,167.56,167.45,20.0]
[1729606099423,5.9692,167.53,167.45,20.0]
[1729606099716,5.9692,167.53,167.43,90.0]
[1729606099916,0.08788459,167.46,167.42,20.0]
[1729606100509,0.3287547,167.56,167.42,20.0]
[1729606100899,5.9693,167.53,167.43,70.0]
[1729606101120,0.2287547,167.56,167.42,20.0]
[1729606101121,0.2287547,167.56,167.45,70.0]
[1729606101525,0.2287547,167.56,167.48,70.0]